bitfinex/quotes_ETHUSD_20260219
["timestamp","ask_amount","ask_price","bid_price","bid_amount"]
[1771503851227,1.81806634,1955.4,1954.8,0.951]
[1771503851905,1.81696634,1955.9,1955.4,1.81801069]
[1771503852215,1.81696634,1956.1,1955.2,1.27863181]
[1771503852520,6.93637684,1956.2,1955.2,3.0966425]
[1771503852521,1.81696634,1955.9,1955.2,3.0966425]
[1771503852693,1.81696634,1955.9,1955.2,7.47639254]
[1771503852895,1.81696634,1955.9,1955.3,1.81801069]
[1771503853089,1.81696634,1955.9,1955.5,1.81801069]
[1771503853418,1.81696634,1955.9,1955.3,1.81801069]
[1771503854395,1.81696634,1955.7,1955.3,1.81801069]
[1771503854895,1.81696634,1955.7,1955.3,3.09658485]
[1771503855295,1.81696634,1955.7,1955.3,1.81801069]
[1771503855496,1.81696634,1955.7,1955.1,3.69201069]
[1771503855803,1.81696634,1955.7,1955.2,1.81801069]
[1771503856427,1.81696634,1955.7,1955.2,3.09665171]
[1771503856814,1.81696634,1955.7,1955.2,1.81801069]
[1771503857224,1.81696634,1955.7,1955.2,3.09663963]
[1771503858033,1.81696634,1955.7,1955.2,1.81801069]
[1771503858829,1.81696634,1955.7,1955.2,3.09665221]
[1771503859134,1.81696634,1955.7,1955.3,1.81801069]
[1771503859636,3.09528162,1955.7,1955.2,1.81801069]
[1771503859827,1.81696634,1955.6,1955.2,1.81801069]
[1771503860333,1.81696634,1955.6,1955.1,1.874]
[1771503860731,1.81696634,1955.6,1955.1,0.922]
[1771503860933,1.81696634,1955.4,1954.8,2.77101069]
[1771503861637,1.81696634,1955.4,1954.8,0.953]
[1771503862328,1.81696634,1955.4,1954.8,0.001]
[1771503863443,1.81696634,1955.2,1954.8,0.001]
[1771503864142,1.81696634,1955.2,1954.8,1.81901069]
[1771503864344,1.81696634,1955.2,1954.8,0.001]
[1771503865218,1.81696634,1955.2,1954.7,0.001]
[1771503865612,1.81696634,1955.0,1954.7,0.001]
[1771503866031,1.81696634,1954.9,1954.5,0.001]
[1771503868120,1.81696634,1954.7,1954.5,0.001]
[1771503869348,2.66696634,1955.1,1954.5,1.81901069]
[1771503870119,2.66696634,1955.3,1954.6,1.81801069]
[1771503870420,1.81696634,1955.2,1954.6,1.81801069]
[1771503871243,0.85,1955.3,1954.6,1.81801069]
[1771503871452,2.66696634,1955.3,1954.6,1.81801069]
[1771503871833,1.81696634,1955.2,1954.6,1.81801069]
[1771503872352,3.09567331,1955.1,1954.6,1.81801069]
[1771503874129,1.81696634,1955.0,1954.5,0.001]
[1771503874437,3.09580413,1954.9,1954.5,0.001]
[1771503874837,3.09580413,1954.9,1954.7,0.001]
[1771503880050,1.27883779,1954.9,1954.7,0.001]
[1771503880665,2.56919522,1955.0,1954.7,0.001]
[1771503881466,1.71619522,1955.0,1954.7,0.001]
[1771503881635,2.56919522,1955.0,1954.7,1.64060924]
[1771503882763,2.13273172,1955.1,1954.7,1.64060924]
[1771503883870,1.27873172,1955.1,1954.7,1.64060924]
[1771503884059,2.13273172,1955.1,1954.7,1.64060924]
[1771503886265,1.71619522,1955.2,1954.7,2.91955103]
[1771503886439,1.71619522,1955.3,1954.8,1.63960924]
[1771503886836,0.0011,1954.9,1954.8,1.63960924]
[1771503888275,0.0011,1954.9,1954.7,0.001]
[1771503889270,0.0011,1954.9,1954.7,1.64060924]
[1771503892074,3.84879357,1955.3,1954.8,1.63960924]
[1771503892540,3.84974691,1955.4,1954.8,1.63960924]
[1771503893977,2.99474691,1955.4,1954.8,1.63960924]
[1771503895481,3.84974691,1955.4,1954.8,1.63960924]
[1771503895683,2.99474691,1955.4,1954.9,1.63960924]
[1771503895878,3.84974691,1955.4,1954.9,1.63960924]
[1771503897052,2.99474691,1955.4,1954.9,1.63960924]
[1771503897377,1.71619522,1955.3,1954.9,1.63960924]
[1771503897557,1.71619522,1955.3,1954.8,1.63960924]
[1771503897881,1.71619522,1955.3,1954.7,1.64060924]
[1771503898887,1.71619522,1955.1,1954.7,1.64060924]
[1771503900284,1.71619522,1955.1,1954.7,0.001]
[1771503900784,1.74409994,1954.7,1954.4,0.001]
[1771503901084,3.02310971,1954.7,1954.4,0.001]
[1771503901272,3.02310971,1954.7,1954.4,1.77795487]
[1771503901470,3.02267611,1955.3,1954.6,1.77695487]
[1771503901687,3.88077611,1955.3,1954.6,1.77695487]
[1771503901987,3.88077611,1955.3,1954.8,1.77695487]
[1771503902377,0.0011,1955.3,1954.8,1.77695487]
[1771503905491,1.74519994,1955.3,1954.9,1.77695487]
[1771503909989,1.74519994,1955.3,1954.7,0.001]
[1771503910182,1.68477654,1955.1,1954.7,0.001]
[1771503910379,1.68477654,1955.1,1954.7,1.71659761]
[1771503911979,1.68477654,1955.1,1954.7,2.99555869]
[1771503912261,1.68477654,1955.1,1954.8,1.71559761]
[1771503913088,2.96342048,1955.2,1954.8,1.71559761]
[1771503913267,1.68477654,1955.1,1954.7,1.27996108]
[1771503913473,1.68477654,1955.1,1954.7,0.001]
[1771503914065,8.62354215,1955.0,1954.7,0.001]
[1771503919622,7.34476978,1955.0,1954.7,0.001]
[1771503919801,8.62355916,1955.0,1954.7,0.001]
[1771503920221,8.62355916,1955.0,1954.7,1.71659761]
[1771503921992,1.68477654,1954.9,1954.6,0.001]
[1771503922718,1.68477654,1954.9,1954.6,1.71659761]
[1771503924922,2.96363825,1954.9,1954.6,1.71659761]
[1771503927649,5.11618951,1955.2,1954.7,1.71559761]
[1771503927650,1.27977171,1955.2,1954.7,1.71559761]
[1771503928104,0.0011,1955.2,1954.7,1.71559761]
[1771503928709,1.27974997,1955.2,1954.7,1.71659761]
[1771503928926,0.0011,1954.9,1954.7,1.71659761]
[1771503929718,0.0011,1954.9,1954.8,1.71559761]
[1771503929923,0.0011,1955.2,1955.0,1.71559761]
[1771503930121,1.27972181,1955.3,1955.0,1.71559761]
[1771503930317,0.0011,1955.2,1955.0,1.71559761]
[1771503931907,1.27972181,1955.3,1955.0,1.71559761]
[1771503932107,0.0011,1955.2,1955.0,1.71559761]
[1771503932932,0.0011,1955.3,1955.0,1.71559761]
[1771503933232,0.0022,1955.3,1955.0,1.71559761]
[1771503935931,0.0022,1955.3,1955.1,1.71559761]
[1771503936505,0.0011,1955.3,1955.1,1.71559761]
[1771503936713,0.0011,1955.4,1955.3,1.73665735]
[1771503940433,0.0011,1955.5,1955.3,1.73665735]
[1771503941133,1.67094848,1955.4,1955.0,0.944]
[1771503941332,1.67094848,1955.2,1954.9,1.73665735]
[1771503941638,1.67094848,1955.2,1955.1,0.001]
[1771503941837,1.67094848,1955.2,1954.9,1.73665735]
[1771503942034,1.67094848,1955.2,1955.0,0.001]
[1771503942410,0.0011,1955.3,1955.0,1.73765735]
[1771503942614,0.0011,1955.4,1955.1,1.73665735]
[1771503943324,0.0011,1955.4,1955.1,3.01532118]
[1771503943533,0.0011,1955.4,1955.2,1.73665735]
[1771503952353,0.0011,1955.4,1955.1,1.73665735]
[1771503953325,0.0011,1955.4,1955.2,1.73665735]
[1771503955461,0.0011,1955.4,1955.3,0.001]
[1771503956544,0.0011,1955.4,1955.3,1.73765735]
[1771503956745,0.0011,1955.6,1955.4,1.73665735]
[1771503956949,1.67094848,1955.7,1955.4,1.73665735]
[1771503957457,1.67094848,1955.9,1955.5,1.73665735]
[1771503959367,1.67094848,1955.9,1955.6,1.73665735]
[1771503960265,2.85983637,1956.1,1955.6,1.73665735]
[1771503960573,2.85980357,1956.1,1955.6,1.73665735]
[1771503960778,2.85981035,1956.1,1955.6,1.73665735]
[1771503961136,1.58174655,1956.2,1955.6,1.73665735]
[1771503961331,1.58174655,1956.0,1955.6,1.27835947]
[1771503961587,1.27805326,1956.1,1955.3,0.001]
[1771503961588,1.58174655,1955.6,1955.3,0.001]
[1771503961883,1.58174655,1955.4,1955.2,0.001]
[1771503963068,1.58174655,1955.4,1955.0,0.026575]
[1771503963568,1.58174655,1955.4,1955.0,1.64601038]
[1771503964068,2.86025877,1955.4,1955.0,1.64601038]
[1771503965268,2.86025877,1955.4,1955.0,1.62043538]
[1771503966673,1.58174655,1955.4,1955.0,1.62043538]
[1771503966880,1.72723371,1955.3,1955.0,0.001]
[1771503967050,1.72723371,1955.3,1955.0,1.63358678]
[1771503967682,1.72723371,1955.6,1955.0,1.63358678]
[1771503967884,1.72723371,1955.5,1955.0,1.63358678]
[1771503968798,0.0011,1955.3,1955.1,0.001]
[1771503970565,1.72723371,1955.2,1954.8,1.63358678]
[1771503970881,1.72723371,1955.2,1954.8,0.001]
[1771503971198,1.72723371,1955.0,1954.7,0.001]
[1771503971405,6.53928671,1955.3,1954.7,0.001]
[1771503971406,1.72723371,1955.2,1954.7,0.001]
[1771503971756,1.72723371,1955.1,1954.7,0.001]
[1771503972102,1.72723371,1954.9,1954.7,0.001]
[1771503973595,1.72723371,1955.0,1954.7,0.001]
[1771503975386,3.00601149,1955.0,1954.7,0.001]
[1771503975970,1.72723371,1954.9,1954.6,0.923]
[1771503976170,3.00610947,1954.9,1954.6,0.923]
[1771503976372,1.72723371,1954.8,1954.6,0.923]
[1771503977467,1.72723371,1954.8,1954.5,0.001]
[1771503977672,7.38642042,1954.6,1954.3,0.001]
[1771503977898,1.72723371,1954.6,1954.3,0.001]
[1771503980518,1.72723371,1954.8,1954.3,1.63358678]
[1771503981916,1.72723371,1954.9,1954.4,1.63358678]
[1771503984285,1.72723371,1954.9,1954.5,2.91168629]
[1771503986135,1.72723371,1954.8,1954.4,0.001]
[1771503986342,1.72723371,1954.8,1954.4,2.91274869]
[1771503988036,1.72723371,1954.7,1954.4,0.001]
[1771503991176,1.72723371,1954.5,1954.2,1.63258678]
[1771503992239,6.93816217,1954.7,1954.2,1.63258678]
[1771503992240,1.72723371,1954.7,1954.2,1.63258678]
[1771503992447,1.72723371,1955.0,1954.4,1.63258678]
[1771503992643,2.61323371,1955.2,1954.6,1.63258678]
[1771503993365,1.72723371,1955.2,1954.8,1.63258678]
[1771503993667,1.27968126,1955.3,1954.8,1.63258678]
[1771503993873,0.0011,1955.3,1954.8,1.63258678]
[1771503994038,1.72833371,1955.3,1954.8,1.63258678]
[1771503994837,3.00691515,1955.3,1954.8,1.63258678]
[1771503995068,3.00691728,1955.3,1954.8,1.63258678]
[1771503996478,3.00691728,1955.3,1954.8,2.91148008]
[1771503996864,1.72833371,1955.3,1954.8,2.91148008]
[1771503997068,1.64743245,1955.2,1954.6,1.66150405]
[1771503997249,1.64743245,1955.0,1954.6,1.66150405]
[1771504000851,1.64743245,1955.0,1954.7,2.94047268]
[1771504001046,1.64743245,1955.2,1954.7,2.94047268]
[1771504001251,1.64743245,1955.2,1954.7,1.66150405]
[1771504003771,1.64743245,1955.2,1954.7,2.94040844]
[1771504004577,1.64743245,1955.2,1954.7,1.27890439]
[1771504004777,1.64743245,1955.2,1954.7,2.94040844]
[1771504005478,1.64743245,1955.1,1954.7,1.66150405]
[1771504006274,1.64743245,1955.1,1954.7,2.94046409]
[1771504007078,1.64743245,1955.0,1954.7,1.66150405]
[1771504007262,1.64743245,1955.1,1954.8,1.66150405]
[1771504007463,1.64743245,1955.1,1954.6,2.94049067]
[1771504007987,1.64743245,1955.1,1954.7,1.66150405]
[1771504008982,1.64743245,1955.1,1954.7,2.94047249]
[1771504009385,1.64743245,1955.1,1954.7,1.66150405]
[1771504010484,1.64743245,1955.0,1954.7,1.66150405]
[1771504010789,1.64743245,1955.0,1954.6,1.66150405]
[1771504011087,1.64743245,1954.9,1954.6,1.66150405]
[1771504013391,1.64743245,1954.9,1954.5,1.27906453]
[1771504013585,1.64743245,1954.9,1954.5,2.94056858]
[1771504013786,1.64743245,1954.8,1954.4,2.22813242]
[1771504014096,1.64743245,1954.8,1954.4,3.88963647]
[1771504015293,1.64743245,1954.9,1954.5,1.66150405]
[1771504016791,1.64743245,1954.8,1954.4,3.88963647]
[1771504017666,1.64743245,1954.8,1954.5,1.66150405]
[1771504018489,2.92625687,1955.0,1954.5,1.66150405]
[1771504018887,1.64743245,1954.9,1954.5,2.94059045]
[1771504019267,1.64743245,1954.9,1954.6,1.66150405]
[1771504021098,1.5659044,1955.0,1954.6,1.66150405]
[1771504022500,5.65918671,1954.8,1954.4,0.949]
[1771504022702,1.5648044,1954.7,1954.4,0.949]
[1771504022876,1.5648044,1954.7,1954.4,0.001]
[1771504024102,0.8951,1955.0,1954.4,1.72361275]
[1771504024401,0.0011,1955.0,1954.6,1.72261275]
[1771504025676,0.0011,1955.0,1954.8,1.72261275]
[1771504027989,0.0011,1955.0,1954.8,3.00151085]
[1771504028511,0.0011,1955.0,1954.9,1.6566623]
[1771504031114,0.0011,1955.0,1954.8,2.93552069]
[1771504031696,0.0011,1954.9,1954.8,2.93552069]
[1771504031900,0.0011,1954.9,1954.7,1.6566623]
[1771504032596,1.59575572,1954.9,1954.6,2.93565923]
[1771504033702,1.59575572,1954.9,1954.7,1.6566623]
[1771504033703,0.0011,1954.9,1954.7,1.6566623]
[1771504036250,0.0011,1954.9,1954.8,1.6566623]
[1771504036417,0.0011,1955.2,1954.9,1.6566623]
[1771504038718,0.0011,1955.2,1955.0,2.93543467]
[1771504039546,1.27954659,1955.5,1955.2,1.6566623]
[1771504039547,0.0011,1955.5,1955.2,1.6566623]
[1771504041751,0.0011,1955.5,1955.3,2.93523847]
[1771504041954,1.59575572,1955.5,1955.1,2.23666764]
[1771504042422,1.59575572,1955.5,1955.1,3.89332994]
[1771504043740,1.59465572,1955.3,1954.8,4.81656216]
[1771504044123,1.59465572,1955.3,1954.9,1.6566623]
[1771504044320,1.27955422,1955.5,1954.9,1.6566623]
[1771504044656,1.59575572,1955.5,1955.3,0.001]
[1771504044835,0.0011,1955.4,1955.3,0.001]
[1771504054932,0.0011,1955.4,1955.3,1.6576623]
[1771504055134,0.0011,1955.4,1955.3,0.001]
[1771504056272,0.0011,1955.4,1955.3,1.6576623]
[1771504056469,0.0011,1955.5,1955.4,1.6075737]
[1771504057069,0.0011,1955.5,1955.3,2.88713075]
[1771504057249,0.0011,1955.4,1955.3,2.88713075]
[1771504057561,0.0011,1955.4,1955.3,1.6085737]
[1771504058943,0.0011,1955.4,1955.3,0.001]
[1771504060274,0.0011,1955.4,1955.3,1.6085737]
[1771504062893,0.0011,1955.4,1955.3,0.001]
[1771504067093,1.55465996,1955.4,1955.0,1.27973872]
[1771504067386,1.54783558,1955.4,1955.0,2.88731242]
[1771504068473,1.54783558,1955.4,1955.0,1.6085737]
[1771504068803,1.55355996,1955.3,1955.0,0.001]
[1771504069099,1.55355996,1955.2,1954.8,2.88647691]
[1771504069288,1.55355996,1955.2,1954.8,1.27890321]
[1771504069470,1.55355996,1955.2,1954.7,3.84849114]
[1771504069883,1.55355996,1955.2,1955.1,0.001]
[1771504070092,1.55355996,1955.2,1954.7,3.84849114]
[1771504073501,1.55355996,1955.2,1954.8,1.6075737]
[1771504075206,1.55355996,1955.1,1954.8,1.6075737]
[1771504076606,1.55355996,1955.1,1954.8,2.85279231]
[1771504076773,1.55355996,1955.1,1954.7,3.84848253]
[1771504077179,1.55355996,1954.9,1954.6,1.6075737]
[1771504079081,1.55355996,1954.9,1954.6,2.88657383]
[1771504082107,1.55355996,1954.9,1954.5,0.964]
[1771504082482,1.60955782,1954.7,1954.5,2.24309178]
[1771504082681,1.60955782,1954.7,1954.5,0.964]
[1771504082882,1.60955782,1954.7,1954.5,0.965]
[1771504083512,1.60955782,1954.7,1954.5,2.24409015]
[1771504083984,5.66138762,1955.0,1954.5,2.24409015]
[1771504084185,1.60955782,1954.9,1954.5,2.24409339]
[1771504084511,1.60955782,1954.9,1954.5,0.965]
[1771504084710,1.60955782,1954.7,1954.5,0.965]
[1771504084912,1.60955782,1954.7,1954.3,0.001]
[1771504085219,1.60955782,1954.5,1954.3,0.001]
[1771504087491,1.54840647,1954.7,1954.3,1.665359]
[1771504087989,1.54840647,1954.9,1954.3,1.661359]
[1771504088205,1.54950647,1955.1,1954.6,1.664359]
[1771504088401,0.0011,1955.2,1954.8,1.664359]
[1771504088600,0.0011,1955.2,1954.6,2.632359]
[1771504088601,1.54950647,1955.2,1954.6,2.632359]
[1771504089115,1.54840647,1955.1,1954.6,2.632359]
[1771504090097,1.54840647,1955.1,1954.7,1.664359]
[1771504090297,1.54840647,1955.1,1954.7,2.94327854]
[1771504092033,7.20979409,1955.0,1954.5,1.664359]
[1771504092524,7.21089409,1955.2,1954.7,1.664359]
[1771504092723,1.54950647,1955.2,1954.7,1.664359]
[1771504092916,1.54840647,1955.1,1954.7,1.664359]
[1771504094824,1.54840647,1955.1,1954.7,2.94330519]
[1771504095029,1.54950647,1955.1,1954.7,2.94330519]
[1771504096241,1.54950647,1955.1,1954.8,1.664359]
[1771504096721,1.54950647,1955.1,1954.7,1.27894619]
[1771504096902,1.54950647,1955.1,1954.7,2.94330519]
[1771504097237,7.20982675,1955.0,1954.6,1.664359]
[1771504098627,1.54840647,1954.9,1954.6,1.664359]
[1771504099009,1.54840647,1954.9,1954.6,2.94336878]
[1771504100040,7.20982675,1955.0,1954.6,2.94336878]
[1771504100423,1.54840647,1955.0,1954.6,2.94336878]
[1771504104557,1.54840647,1955.0,1954.6,1.664359]
[1771504104852,1.54840647,1955.0,1954.6,2.94338955]
[1771504106534,1.54840647,1955.0,1954.7,1.664359]
[1771504107030,1.54950647,1955.1,1954.7,1.664359]
[1771504107226,1.54950647,1955.1,1954.7,1.665359]
[1771504107551,0.0011,1955.0,1954.7,1.665359]
[1771504108332,0.0011,1955.2,1955.0,1.664359]
[1771504110447,0.0011,1955.2,1955.1,2.94306597]
[1771504113161,0.0011,1955.2,1954.9,1.27880126]
[1771504113162,1.54840647,1955.1,1954.9,1.27880126]
[1771504113362,0.0011,1955.2,1954.9,1.664359]
[1771504115569,0.0011,1955.2,1954.9,2.94313736]
[1771504119668,0.0011,1955.2,1954.9,1.27877836]
[1771504119868,0.0011,1955.2,1954.9,2.78483287]
[1771504120066,0.0011,1955.2,1955.0,1.50605451]
[1771504120271,1.6227023,1955.2,1954.9,2.78483287]
[1771504120571,1.6227023,1955.2,1955.0,0.977]
[1771504120572,0.0011,1955.2,1955.0,0.977]
[1771504121577,0.0011,1955.2,1955.1,1.27870697]
[1771504121745,0.0011,1955.2,1955.1,2.78476148]
[1771504122253,0.0011,1955.2,1955.1,1.27870697]
[1771504122677,0.0011,1955.4,1955.2,1.50605451]
[1771504123543,0.0011,1955.4,1955.3,1.27857617]
[1771504123739,0.0011,1955.4,1955.3,2.78463068]
[1771504124956,0.0011,1955.4,1955.3,3.76463068]
[1771504125277,0.0011,1955.6,1955.5,1.50605451]
[1771504125771,1.6216023,1956.1,1955.6,1.50605451]
[1771504126276,1.6216023,1956.1,1955.6,2.48705451]
[1771504127259,1.6216023,1956.1,1955.6,2.48705451]
[1771504128377,1.6216023,1956.1,1955.8,1.50605451]
[1771504128576,1.6216023,1956.2,1955.8,1.50605451]
[1771504128751,1.6216023,1956.1,1955.7,2.78436917]
[1771504128953,1.6216023,1956.1,1955.6,0.981]
[1771504129246,1.6216023,1955.9,1955.6,2.48705451]
[1771504129466,1.6216023,1955.9,1955.6,3.76540897]
[1771504129959,1.6216023,1955.9,1955.6,3.76542641]
[1771504130355,1.6216023,1955.9,1955.6,0.981]
[1771504130664,1.6216023,1955.7,1955.5,1.27840557]
[1771504130977,1.6216023,1955.9,1955.4,1.27845974]
[1771504131277,1.6216023,1955.7,1955.3,2.25952179]
[1771504133165,1.6216023,1955.7,1955.3,2.25956992]
[1771504134377,1.6216023,1955.7,1955.3,0.981]
[1771504134585,1.6216023,1955.6,1955.3,0.981]
[1771504134879,1.6216023,1955.6,1955.3,2.25957539]
[1771504136483,1.6216023,1955.6,1955.3,0.981]
[1771504138170,1.6216023,1955.4,1955.0,2.26276101]
[1771504138362,1.6216023,1955.4,1955.0,0.984]
[1771504139298,1.6216023,1955.4,1955.0,2.26276593]
[1771504139498,1.6216023,1955.3,1955.0,1.50605451]
[1771504139688,2.90008042,1955.5,1955.0,1.50605451]
[1771504139999,1.6216023,1955.4,1955.0,1.50605451]
[1771504141192,1.57232318,1955.3,1954.9,0.001]
[1771504141372,1.57232318,1955.3,1954.9,1.2798281]
[1771504141567,1.57232318,1955.3,1954.9,2.89269044]
[1771504143208,1.27845257,1955.5,1955.0,1.61286234]
[1771504143512,1.57232318,1955.4,1955.0,2.8916235]
[1771504146702,1.57232318,1955.4,1955.1,0.001]
[1771504150383,1.50310736,1955.3,1955.1,0.001]
[1771504150981,1.50310736,1955.3,1954.9,0.001]
[1771504151180,7.16452764,1955.2,1954.9,0.001]
[1771504152010,1.50310736,1955.1,1954.9,0.001]
[1771504155313,1.50310736,1955.1,1954.8,0.984]
[1771504155812,1.50310736,1955.1,1954.8,0.001]
[1771504157896,1.27871173,1955.1,1954.8,0.001]
[1771504158099,1.50310736,1955.0,1954.8,0.001]
[1771504158817,1.50310736,1955.0,1954.9,0.001]
[1771504159116,1.50310736,1955.0,1954.8,0.001]
[1771504159318,1.50310736,1955.0,1954.5,2.26505651]
[1771504159491,1.50310736,1954.9,1954.5,3.86459611]
[1771504159688,1.50310736,1954.7,1954.4,1.6005396]
[1771504159994,1.50310736,1954.7,1954.4,0.001]
[1771504162794,1.50310736,1954.6,1954.4,0.001]
[1771504167226,1.50310736,1955.0,1954.5,1.5995396]
[1771504167524,1.50310736,1955.1,1954.5,1.5995396]
[1771504169029,1.50310736,1955.1,1954.7,1.5995396]
[1771504171331,1.50310736,1955.1,1954.7,2.87846863]
[1771504172099,0.0011,1955.0,1954.7,2.87846863]
[1771504173229,0.0011,1955.0,1954.8,1.5995396]
[1771504174316,0.0011,1955.1,1954.7,1.5995396]
[1771504177248,0.0011,1955.1,1954.9,1.52624577]
[1771504178318,0.0011,1955.3,1955.1,1.52624577]
[1771504180339,0.0011,1955.4,1955.3,1.52624577]
[1771504181124,1.41122196,1955.4,1955.1,2.80494353]
[1771504181853,0.0011,1955.4,1955.2,1.52624577]
[1771504182643,0.0011,1955.4,1955.2,2.80484803]
[1771504184529,0.0011,1955.3,1955.2,2.80484803]
[1771504189460,1.41122196,1955.3,1955.1,1.27870697]
[1771504192948,0.0011,1955.3,1955.1,2.80495274]
[1771504193465,1.41122196,1955.3,1955.0,2.26672713]
[1771504194033,1.41122196,1955.3,1955.0,0.988]
[1771504195961,1.41122196,1955.3,1955.0,2.26677]
[1771504196536,1.41122196,1955.3,1955.0,3.79301577]
[1771504196738,1.41122196,1955.3,1955.1,0.001]
[1771504197446,0.0011,1955.2,1955.1,1.52724577]
[1771504199080,0.0011,1955.2,1955.1,0.001]
[1771504199251,0.0011,1955.2,1955.1,1.27970697]
[1771504199446,0.0011,1955.2,1955.1,0.001]
[1771504199646,0.0011,1955.2,1955.1,2.80595274]
[1771504200675,1.40325891,1955.2,1955.1,0.001]
[1771504200973,1.40215891,1955.1,1954.8,0.001]
[1771504201173,1.40215891,1955.1,1954.8,1.27990243]
[1771504201547,1.40215891,1955.1,1954.8,0.001]
[1771504201752,0.0011,1955.2,1954.8,1.43991701]
[1771504201946,0.0011,1955.6,1954.9,1.43891701]
[1771504202166,0.0033,1955.5,1954.9,1.43891701]
[1771504203582,1.40545891,1955.5,1954.9,1.43891701]
[1771504204282,1.40545891,1955.4,1955.0,1.27877237]
[1771504204582,1.40215891,1955.4,1955.0,1.27877237]
[1771504204786,0.0033,1955.3,1955.0,1.27877237]
[1771504205288,0.0033,1955.3,1954.9,1.27878425]
[1771504205289,1.40545891,1955.3,1954.9,1.27878425]
[1771504205462,1.40545891,1955.3,1954.8,3.71776974]
[1771504206082,7.06692238,1955.3,1954.8,1.43991701]
[1771504206248,1.40215891,1955.0,1954.7,0.001]
[1771504206453,1.33157129,1954.9,1954.7,0.001]
[1771504206685,1.33157129,1954.9,1954.6,0.999]
[1771504206870,1.33487129,1954.8,1954.6,0.999]
[1771504207072,1.33157129,1954.8,1954.6,0.999]
[1771504207774,1.33157129,1954.8,1954.6,2.27803225]
[1771504208081,1.33157129,1954.8,1954.6,2.27802177]
[1771504208278,1.33487129,1955.0,1954.6,2.27802177]
[1771504208481,1.33487129,1955.0,1954.6,0.999]
[1771504208781,1.33487129,1955.0,1954.6,2.27803222]
[1771504209273,1.33487129,1955.0,1954.6,3.61478086]
[1771504209475,1.33487129,1955.0,1954.6,0.999]
[1771504209774,1.33487129,1955.0,1954.6,3.61477772]
[1771504210958,1.33157129,1954.9,1954.6,0.999]
[1771504211298,1.33157129,1954.9,1954.7,0.001]
[1771504213390,0.0033,1954.8,1954.7,0.001]
[1771504213886,1.33487129,1954.8,1954.7,0.001]
[1771504214254,1.33487129,1954.8,1954.6,0.999]
[1771504215385,1.33487129,1954.8,1954.6,2.2780338]
[1771504215771,0.0033,1954.8,1954.6,3.61478244]
[1771504215972,0.0033,1954.8,1954.5,2.61684795]
[1771504216687,1.33157129,1955.1,1954.7,1.33674864]
[1771504217878,1.33157129,1955.1,1954.7,2.61565252]
[1771504222566,1.33157129,1955.0,1954.6,2.28002997]
[1771504223084,1.33157129,1955.0,1954.6,1.001]
[1771504223274,1.33157129,1955.0,1954.6,2.28003162]
[1771504223474,1.33157129,1955.0,1954.6,1.001]
[1771504223664,1.33157129,1955.0,1954.7,0.001]
[1771504223868,1.33157129,1954.7,1954.4,0.001]
[1771504224066,1.33157129,1954.6,1954.4,0.001]
[1771504227303,1.33157129,1954.5,1954.4,0.001]
[1771504227499,1.33157129,1954.5,1954.3,0.001]
[1771504230114,1.33157129,1954.5,1954.2,0.001]
[1771504230290,1.33157129,1954.4,1954.1,0.001]
[1771504230496,1.33157129,1954.3,1954.1,0.001]
[1771504234907,1.33157129,1954.3,1953.9,0.001]
[1771504234908,1.33157129,1954.1,1953.9,0.001]
[1771504236305,1.33157129,1954.1,1954.0,0.001]
[1771504238691,1.3242343,1953.9,1953.7,0.001]
[1771504243125,1.3242343,1953.8,1953.7,0.001]
[1771504243310,1.27951474,1953.9,1953.5,0.001]
[1771504243311,1.3242343,1953.7,1953.5,0.001]
[1771504245235,1.3242343,1954.2,1953.6,1.27968877]
[1771504245530,5.66011307,1954.4,1953.7,1.28188871]
[1771504245531,1.3242343,1954.4,1953.7,1.28188871]
[1771504248209,1.3242343,1954.4,1953.9,1.28188871]
[1771504248409,0.0011,1954.3,1953.9,1.28188871]
[1771504248806,1.3242343,1954.8,1954.0,5.66011307]
[1771504249020,0.0011,1954.4,1954.2,1.28188871]
[1771504251036,0.0011,1954.4,1954.3,2.56111912]
[1771504251615,0.0011,1954.6,1954.4,1.28188871]
[1771504252423,0.0011,1955.0,1954.6,1.28188871]
[1771504253024,0.0011,1955.0,1954.8,1.28188871]
[1771504255557,0.0011,1955.0,1954.6,6.39776326]
[1771504255720,0.0011,1955.0,1954.7,1.28188871]
[1771504258132,0.0011,1955.1,1954.9,1.28188871]
[1771504258559,0.0011,1955.1,1954.9,2.28688871]
[1771504260858,0.0011,1955.1,1955.0,1.27877237]
[1771504261274,0.0011,1955.1,1955.0,2.64972639]
[1771504263890,0.0011,1955.2,1955.0,2.64972639]
[1771504264393,0.0011,1955.5,1955.1,1.37095402]
[1771504264588,0.0011,1955.5,1955.3,1.37095402]
[1771504265101,0.0011,1955.6,1955.5,2.64939943]
[1771504265388,1.25880713,1955.5,1954.9,1.37095402]
[1771504265563,1.25880713,1955.5,1955.1,1.37095402]
[1771504266787,1.25880713,1955.5,1955.2,2.25353318]
[1771504268100,1.25880713,1955.5,1955.2,1.01]
[1771504270459,1.25880713,1955.5,1955.2,2.28864112]
[1771504271912,1.25286898,1955.2,1954.9,1.24353318]
[1771504272067,1.25286898,1955.3,1955.0,1.24353318]
[1771504272371,1.25286898,1955.5,1955.0,1.24353318]
[1771504272564,1.25396898,1955.6,1955.0,1.24353318]
[1771504274306,1.25396898,1955.6,1955.2,1.24353318]
[1771504275100,1.25396898,1955.6,1955.2,2.25453318]
[1771504275411,0.0011,1955.5,1955.2,2.25453318]
[1771504276420,0.0011,1955.5,1955.3,1.24353318]
[1771504276982,1.25396898,1955.5,1955.2,1.011]
[1771504278632,1.25396898,1955.5,1955.2,3.53316892]
[1771504281664,0.0011,1955.6,1955.3,1.24353318]
[1771504281853,1.25396898,1955.6,1955.3,1.24353318]
[1771504282716,1.25396898,1955.6,1955.2,1.27863574]
[1771504282929,1.25286898,1955.5,1955.1,3.536194]
[1771504283121,1.25286898,1955.5,1955.1,2.29266082]
[1771504283317,1.25286898,1955.5,1955.2,1.24353318]
[1771504283547,1.25286898,1955.4,1955.1,1.014]
[1771504285324,1.25286898,1955.4,1955.1,0.001]
[1771504287149,1.25396898,1955.6,1955.1,1.24453318]
[1771504287335,1.25396898,1955.6,1955.3,1.24353318]
[1771504287336,0.0011,1955.6,1955.3,1.24353318]
[1771504287528,0.0011,1955.6,1955.3,2.25653318]
[1771504287952,0.0011,1955.4,1955.3,2.25653318]
[1771504288643,0.0011,1955.5,1955.4,1.24353318]
[1771504289236,1.25396898,1955.5,1955.2,0.001]
[1771504289687,1.25396898,1955.5,1955.2,1.24453318]